bitfinex-derivatives/quotes_BTCF0:USTF0_20250904
["timestamp","ask_amount","ask_price","bid_price","bid_amount"]
[1756972986934,0.003,110510.0,110500.0,1.39542893]
[1756972987640,0.82756,110510.0,110500.0,1.39542893]
[1756972988137,0.003,110510.0,110500.0,1.39542893]
[1756972988336,0.82756,110510.0,110500.0,1.39542893]
[1756972990138,0.003,110510.0,110500.0,1.39542893]
[1756973009745,0.003,110510.0,110500.0,2.76563872]
[1756973009954,0.01348187,110520.0,110510.0,0.1391848]
[1756973010152,0.01348187,110520.0,110510.0,1.70168373]
[1756973011256,0.01348187,110520.0,110510.0,1.70268373]
[1756973011562,1.91176,110550.0,110540.0,0.01772]
[1756973011763,2.7368,110550.0,110540.0,0.42505538]
[1756973012758,2.75748248,110550.0,110540.0,0.42505538]
[1756973013860,2.75748248,110550.0,110540.0,0.49574176]
[1756973014064,2.75948248,110550.0,110540.0,0.49574176]
[1756973014268,2.75898248,110550.0,110540.0,0.49574176]
[1756973014467,2.76198248,110550.0,110540.0,0.49574176]
[1756973015168,2.76178248,110550.0,110540.0,0.49574176]
[1756973015368,2.76178248,110550.0,110540.0,0.50586305]
[1756973016264,2.76178248,110550.0,110540.0,0.12952767]
[1756973016570,2.76178248,110550.0,110540.0,0.50586305]
[1756973023468,1.93694248,110550.0,110540.0,0.50586305]
[1756973023663,2.76094248,110550.0,110540.0,0.50586305]
[1756973029780,1.93694248,110550.0,110540.0,0.50586305]
[1756973029973,2.76046248,110550.0,110540.0,0.50586305]
[1756973030276,1.93694248,110550.0,110540.0,0.50586305]
[1756973030475,2.76042248,110550.0,110540.0,0.12952767]
[1756973030878,2.76042248,110550.0,110540.0,0.50586305]
[1756973032981,1.93694248,110550.0,110540.0,0.50586305]
[1756973033281,2.76186248,110550.0,110540.0,0.50586305]
[1756973034683,2.76186248,110550.0,110540.0,0.86666305]
[1756973036280,1.93694248,110550.0,110540.0,0.86666305]
[1756973036486,2.76166248,110550.0,110540.0,0.86666305]
[1756973037993,1.93694248,110550.0,110540.0,0.86666305]
[1756973038192,2.76138248,110550.0,110540.0,0.86666305]
[1756973038588,1.93694248,110550.0,110540.0,0.86666305]
[1756973038789,2.76138248,110550.0,110540.0,0.86666305]
[1756973038990,1.93694248,110550.0,110540.0,0.86666305]
[1756973039497,2.76126248,110550.0,110540.0,0.86666305]
[1756973039697,1.93694248,110550.0,110540.0,0.86666305]
[1756973040088,2.76122248,110550.0,110540.0,0.86666305]
[1756973040289,1.93694248,110550.0,110540.0,0.86666305]
[1756973040488,2.76118248,110550.0,110540.0,0.86666305]
[1756973041089,1.93694248,110550.0,110540.0,0.86666305]
[1756973041288,2.76118248,110550.0,110540.0,0.86666305]
[1756973041892,0.84992248,110550.0,110540.0,0.86666305]
[1756973044494,0.02568248,110550.0,110540.0,0.86666305]
[1756973044695,0.84956248,110550.0,110540.0,0.86666305]
[1756973045394,0.02568248,110550.0,110540.0,1.99566919]
[1756973045596,0.84956248,110550.0,110540.0,1.99566919]
[1756973045796,0.84956248,110550.0,110540.0,0.86666305]
[1756973046095,0.02568248,110550.0,110540.0,0.86666305]
[1756973047295,0.85216248,110550.0,110540.0,0.86666305]
[1756973047493,0.02568248,110550.0,110540.0,0.86666305]
[1756973047799,0.02168248,110550.0,110540.0,0.86666305]
[1756973048100,0.02268248,110550.0,110540.0,0.86666305]
[1756973049793,0.02268248,110550.0,110540.0,0.49032767]
[1756973049993,0.02268248,110550.0,110540.0,0.86666305]
[1756973050198,0.02268248,110550.0,110540.0,0.49032767]
[1756973050496,0.02268248,110550.0,110540.0,0.86666305]
[1756973050999,2.64855538,110590.0,110570.0,0.04497]
[1756973051199,0.82788,110580.0,110570.0,0.42140538]
[1756973051399,0.82788,110580.0,110570.0,0.42130538]
[1756973051597,1.07788,110580.0,110570.0,0.42130538]
[1756973052498,1.08188,110580.0,110570.0,0.04497]
[1756973053202,0.254,110580.0,110570.0,0.04497]
[1756973053401,0.254,110580.0,110570.0,0.42130538]
[1756973053402,1.08168,110580.0,110570.0,0.42130538]
[1756973054601,1.08368,110580.0,110570.0,0.42130538]
[1756973054802,1.08168,110580.0,110570.0,0.42130538]
[1756973055100,1.08152,110580.0,110570.0,0.42130538]
[1756973059106,0.0033,110580.0,110570.0,0.42130538]
[1756973059301,0.8303,110580.0,110570.0,0.42130538]
[1756973059706,0.8303,110580.0,110570.0,0.04497]
[1756973059897,0.8303,110580.0,110570.0,0.42130538]
[1756973060503,0.829,110580.0,110570.0,0.42130538]
[1756973061005,0.8288,110580.0,110570.0,0.42130538]
[1756973061201,0.8288,110580.0,110570.0,0.78210538]
[1756973065206,0.002,110580.0,110570.0,0.78210538]
[1756973065407,0.82836,110580.0,110570.0,0.78210538]
[1756973069307,0.002,110580.0,110570.0,0.78210538]
[1756973069608,0.82792,110580.0,110570.0,0.78210538]
[1756973069808,0.82792,110580.0,110570.0,0.40577]
[1756973070205,0.82792,110580.0,110570.0,0.78210538]
[1756973070910,0.002,110580.0,110570.0,0.78210538]
[1756973071107,0.83488,110580.0,110570.0,0.78210538]
[1756973071309,0.002,110580.0,110570.0,0.78210538]
[1756973071705,0.8348,110580.0,110570.0,0.78210538]
[1756973072812,0.83528,110580.0,110570.0,0.78210538]
[1756973073007,0.002,110580.0,110570.0,0.78210538]
[1756973073406,0.83524,110580.0,110570.0,0.78210538]
[1756973073606,0.83524,110580.0,110570.0,0.78179041]
[1756973075816,0.83492,110580.0,110570.0,0.78179041]
[1756973076714,0.83492,110580.0,110570.0,0.40577]
[1756973076913,0.83492,110580.0,110570.0,0.78179041]
[1756973079220,0.002,110580.0,110570.0,0.78179041]
[1756973079623,0.83576,110580.0,110570.0,0.78179041]
[1756973079817,0.002,110580.0,110570.0,0.78179041]
[1756973080022,0.83572,110580.0,110570.0,0.40577]
[1756973080423,0.002,110580.0,110570.0,0.78179041]
[1756973080720,0.002,110580.0,110570.0,2.15985164]
[1756973081218,0.002,110580.0,110570.0,2.25026714]
[1756973082227,0.002,110580.0,110570.0,2.15985164]
[1756973082521,0.02138039,110590.0,110570.0,2.15985164]
[1756973082727,0.56030039,110590.0,110580.0,1.88221164]
[1756973083426,0.56030039,110590.0,110580.0,0.40552]
[1756973083623,0.02138039,110590.0,110580.0,2.15960164]
[1756973084323,2.64768041,110630.0,110610.0,0.01733]
[1756973084523,2.64768041,110630.0,110610.0,0.42084041]
[1756973084524,0.51479084,110620.0,110610.0,0.42084041]
[1756973084828,0.51479084,110620.0,110610.0,0.04472]
[1756973085028,0.02123084,110620.0,110610.0,0.04472]
[1756973085331,0.85567084,110620.0,110610.0,0.42074041]
[1756973085628,0.85567084,110620.0,110610.0,0.78154041]
[1756973085822,0.86067084,110620.0,110610.0,0.79118491]
[1756973086023,0.86079084,110620.0,110610.0,1.99061067]
[1756973086428,0.86079084,110620.0,110610.0,0.48652903]
[1756973086429,0.86579084,110620.0,110610.0,0.48652903]
[1756973086627,0.86579084,110620.0,110610.0,1.99061067]
[1756973087932,0.86579084,110620.0,110610.0,0.86254944]
[1756973088120,0.03123084,110620.0,110610.0,0.86254944]
[1756973088429,0.86539084,110620.0,110610.0,0.86254944]
[1756973089330,0.86339084,110620.0,110610.0,0.86254944]
[1756973092233,0.84416,110620.0,110610.0,1.99061067]
[1756973093139,0.84416,110620.0,110610.0,0.48652903]
[1756973093327,0.4609,110660.0,110630.0,0.01733]
[1756973093535,0.85795911,110660.0,110650.0,0.01733]
[1756973093735,1.69263911,110660.0,110650.0,0.01733]
[1756973093923,1.69263911,110660.0,110640.0,0.04482]
[1756973094129,0.98682041,110650.0,110640.0,0.0001]
[1756973094324,0.98682041,110650.0,110630.0,0.01743]
[1756973094530,1.57150041,110640.0,110630.0,0.01743]
[1756973094731,1.59279851,110640.0,110630.0,0.01733]
[1756973095234,1.59271851,110640.0,110630.0,0.04472]
[1756973095632,1.59671851,110640.0,110630.0,0.04472]
[1756973095832,1.60371851,110640.0,110630.0,0.04472]
[1756973096035,1.60367851,110640.0,110630.0,0.04472]
[1756973096836,1.2276581,110640.0,110630.0,0.04472]
[1756973097024,1.60367851,110640.0,110630.0,0.04472]
[1756973097532,0.76911851,110640.0,110630.0,0.04472]
[1756973097834,0.8664181,110640.0,110630.0,0.42074041]
[1756973098831,0.0322981,110640.0,110630.0,0.42074041]
[1756973099033,0.8664181,110640.0,110630.0,0.42074041]
[1756973099935,0.8664181,110640.0,110630.0,0.04472]
[1756973100434,0.8664181,110640.0,110630.0,0.42074041]
[1756973100836,0.0322981,110640.0,110630.0,0.42074041]
[1756973101036,0.8660981,110640.0,110630.0,0.42074041]
[1756973101938,0.8660981,110640.0,110630.0,0.04472]
[1756973102140,0.8660981,110640.0,110630.0,0.42074041]
[1756973103840,0.0322981,110640.0,110630.0,0.42074041]
[1756973104042,0.8654381,110640.0,110630.0,0.42074041]
[1756973104337,0.8654381,110640.0,110630.0,0.04472]
[1756973104535,0.8654381,110640.0,110630.0,0.42074041]
[1756973104841,0.8654381,110640.0,110630.0,0.04472]
[1756973105143,0.8654381,110640.0,110630.0,0.42074041]
[1756973106441,0.8654381,110640.0,110630.0,0.04472]
[1756973106442,1.2262381,110640.0,110630.0,0.04472]
[1756973106638,1.60165851,110640.0,110630.0,0.01733]
[1756973106841,1.60165851,110640.0,110630.0,0.04472]
[1756973107342,1.60217851,110640.0,110630.0,0.04472]
[1756973107838,0.76901851,110640.0,110630.0,0.04472]
[1756973108140,1.60209851,110640.0,110630.0,0.04472]
[1756973108842,0.3929981,110640.0,110620.0,0.73692041]
[1756973109143,0.3929981,110640.0,110630.0,0.37602041]
[1756973109329,1.2259181,110640.0,110630.0,0.37602041]
[1756973109841,1.2249181,110640.0,110630.0,0.37602041]
[1756973110741,1.2259181,110640.0,110620.0,0.3609]
[1756973110944,1.2189181,110640.0,110630.0,0.37602041]
[1756973111241,0.8621181,110640.0,110630.0,0.37602041]
[1756973111644,1.2189181,110640.0,110630.0,0.37602041]
[1756973111838,0.3909981,110640.0,110620.0,0.3609]
[1756973112142,0.83256,110630.0,110620.0,0.3609]
[1756973112443,0.83256,110630.0,110620.0,0.73682041]
[1756973113243,0.83256,110630.0,110620.0,0.73998041]
[1756973113542,0.83556,110630.0,110620.0,0.73998041]
[1756973113944,0.003,110630.0,110620.0,0.73998041]
[1756973114145,0.83556,110630.0,110620.0,0.36396]
[1756973114345,0.83556,110630.0,110620.0,0.73998041]
[1756973114647,0.83956,110630.0,110620.0,0.73998041]
[1756973115134,0.83952,110630.0,110620.0,0.73998041]
[1756973116445,0.007,110630.0,110620.0,0.73998041]
[1756973116648,0.83916,110630.0,110620.0,0.73998041]
[1756973117646,0.007,110630.0,110620.0,0.73998041]
[1756973117844,0.83916,110630.0,110620.0,0.73998041]
[1756973118746,0.007,110630.0,110620.0,0.73998041]
[1756973118953,0.839,110630.0,110620.0,0.73998041]
[1756973119147,0.83892,110630.0,110620.0,0.73998041]
[1756973120041,0.007,110630.0,110620.0,0.73998041]
[1756973120250,0.83892,110630.0,110620.0,0.73998041]
[1756973121048,0.007,110630.0,110620.0,0.73998041]
[1756973121548,0.007,110630.0,110620.0,1.08035521]
[1756973121747,0.007,110630.0,110620.0,0.98998041]
[1756973123748,0.007,110630.0,110620.0,1.25518041]
[1756973124348,0.007,110630.0,110620.0,1.27094041]
[1756973128343,0.007,110630.0,110620.0,0.89492]
[1756973128554,0.007,110630.0,110620.0,1.27094041]
[1756973128946,0.007,110630.0,110620.0,1.29713041]
[1756973134356,0.004,110630.0,110620.0,1.29713041]
[1756973135458,0.004,110630.0,110620.0,1.29674848]
[1756973135853,0.004,110630.0,110620.0,1.13712298]
[1756973136165,0.004,110630.0,110620.0,1.96840298]
[1756973136465,0.004,110630.0,110620.0,1.13712298]
[1756973136648,0.004,110630.0,110620.0,1.96840298]
[1756973137050,0.0211981,110640.0,110630.0,0.04195]
[1756973137248,0.4819387,110660.0,110630.0,1.39395478]
[1756973137453,0.1211387,110660.0,110650.0,1.13918848]
[1756973138046,0.3711387,110660.0,110650.0,0.40275]
[1756973138251,0.3711387,110660.0,110650.0,0.77838848]
[1756973138456,0.3731387,110660.0,110650.0,0.77838848]
[1756973138761,0.3751387,110660.0,110650.0,0.78289848]
[1756973140253,0.3751387,110660.0,110650.0,0.90197164]
[1756973140454,0.3731387,110660.0,110650.0,0.90197164]
[1756973140753,0.3741387,110660.0,110650.0,0.90197164]
[1756973142858,1.2052187,110660.0,110650.0,0.90197164]
[1756973144660,1.2052187,110660.0,110650.0,0.52633316]
[1756973144861,1.2052187,110660.0,110650.0,0.90197164]
[1756973145655,0.3741387,110660.0,110650.0,0.90197164]
[1756973146061,1.2049387,110660.0,110650.0,0.90197164]
[1756973146661,1.2049387,110660.0,110650.0,0.54117164]
[1756973146874,1.2049387,110660.0,110650.0,0.42209848]
[1756973147363,1.2049387,110660.0,110650.0,0.78289848]
[1756973147663,1.2049387,110660.0,110650.0,1.04809848]
[1756973149163,1.2049387,110660.0,110650.0,0.67246]
[1756973149366,1.2049387,110660.0,110650.0,1.04809848]
[1756973151466,0.3741387,110660.0,110650.0,1.04809848]
[1756973151653,1.2048987,110660.0,110650.0,1.04809848]
[1756973152765,1.2048987,110660.0,110650.0,0.67246]
[1756973152964,1.2048987,110660.0,110650.0,1.04809848]
[1756973155365,1.2048987,110660.0,110650.0,0.67246]
[1756973155569,1.2048987,110660.0,110650.0,1.04809848]
[1756973159163,0.1241387,110660.0,110650.0,1.04809848]
[1756973159369,0.9540187,110660.0,110650.0,1.04809848]
[1756973159868,0.1241387,110660.0,110650.0,1.04809848]
[1756973160057,0.9551787,110660.0,110650.0,1.04809848]
[1756973163873,0.9546587,110660.0,110650.0,1.04809848]
[1756973164672,0.9546187,110660.0,110650.0,1.04809848]
[1756973165061,0.1241387,110660.0,110650.0,1.04809848]
[1756973165266,0.9548587,110660.0,110650.0,0.67246]
[1756973165566,0.9548587,110660.0,110650.0,1.04809848]
[1756973166072,0.1241387,110660.0,110650.0,0.67246]
[1756973166274,0.9548587,110660.0,110650.0,0.67246]
[1756973166477,0.9548587,110660.0,110650.0,1.04809848]
[1756973167172,0.9548587,110660.0,110650.0,0.67246]
[1756973167374,0.9548587,110660.0,110650.0,1.04809848]
[1756973169577,0.9548987,110660.0,110650.0,1.29809848]
[1756973169877,0.1241387,110660.0,110650.0,1.29809848]
[1756973171980,0.1241387,110660.0,110650.0,2.12885848]
[1756973172176,0.1241387,110660.0,110650.0,1.29809848]
[1756973173070,0.0102955,110660.0,110650.0,2.51536442]
[1756973173782,0.0102955,110660.0,110650.0,2.76536442]
[1756973174081,0.003,110660.0,110650.0,2.51536442]
[1756973174283,0.003,110660.0,110650.0,2.86536442]
[1756973176683,0.93088,110680.0,110650.0,2.86536442]
[1756973176879,0.93088,110680.0,110670.0,1.51793392]
[1756973177180,0.93088,110680.0,110670.0,0.41674848]
[1756973177970,0.93468,110680.0,110670.0,0.41674848]
[1756973178182,0.93468,110680.0,110670.0,0.79238696]
[1756973178377,0.93468,110680.0,110670.0,0.42125848]
[1756973178584,1.56031848,110680.0,110670.0,0.11922219]
[1756973178776,1.18568,110680.0,110670.0,0.11922219]
[1756973179485,1.18668,110680.0,110670.0,0.49486067]
[1756973180084,0.106,110680.0,110670.0,0.49486067]
[1756973180280,0.106,110680.0,110670.0,2.24777611]
[1756973180476,0.9362,110680.0,110670.0,2.24777611]
[1756973181283,0.106,110680.0,110670.0,2.24777611]
[1756973181489,0.93608,110680.0,110670.0,2.24777611]
[1756973181783,0.106,110680.0,110670.0,2.24777611]
[1756973181985,0.93608,110680.0,110670.0,2.24777611]
[1756973182383,0.93608,110680.0,110670.0,0.74522219]
[1756973182579,0.93608,110680.0,110670.0,2.24777611]
[1756973182777,0.93608,110680.0,110670.0,1.12086067]
[1756973183188,1.18608,110680.0,110670.0,1.12086067]
[1756973183585,1.18608,110680.0,110670.0,0.74522219]
[1756973183988,1.18608,110680.0,110670.0,1.12086067]
[1756973184288,0.106,110680.0,110670.0,2.24777611]
[1756973186688,0.102,110680.0,110670.0,2.24777611]
[1756973186890,0.103,110680.0,110670.0,2.24777611]
[1756973187194,0.101,110680.0,110670.0,2.24777611]
[1756973187489,0.102,110680.0,110670.0,2.24777611]
[1756973188284,0.67336,110680.0,110670.0,2.24777611]
[1756973188983,0.102,110680.0,110670.0,2.24777611]
[1756973191189,0.102,110680.0,110670.0,2.58810991]
[1756973191384,0.102,110680.0,110670.0,3.53822991]
[1756973191986,0.102,110680.0,110670.0,3.41822991]
[1756973193091,0.02399076,110680.0,110670.0,3.41822991]
[1756973193391,0.02299076,110680.0,110670.0,3.41822991]
[1756973193791,0.02299076,110680.0,110670.0,3.52822991]
[1756973194193,0.02199076,110680.0,110670.0,3.86922991]
[1756973195192,0.02199076,110680.0,110670.0,4.31302991]
[1756973195493,0.02199076,110680.0,110670.0,4.6882357]
[1756973196194,0.02199076,110680.0,110670.0,3.4081157]
[1756973196392,0.02199076,110680.0,110670.0,3.86069915]
[1756973196589,0.02199076,110680.0,110670.0,3.61057915]
[1756973196794,0.0183797,110700.0,110690.0,0.04111]
[1756973197097,0.0183797,110700.0,110690.0,0.77711579]
[1756973198396,0.0203797,110700.0,110690.0,0.77711579]
[1756973199498,0.0223797,110700.0,110690.0,0.77711579]
[1756973199899,0.0213797,110700.0,110690.0,0.77711579]
[1756973200593,0.2713797,110700.0,110690.0,0.77711579]
[1756973200895,0.2713797,110700.0,110690.0,1.04231579]
[1756973201200,0.2703797,110700.0,110690.0,1.04231579]
[1756973201901,0.2703797,110700.0,110690.0,0.68151579]
[1756973202401,0.2703797,110700.0,110690.0,0.68602579]
[1756973202803,0.2703797,110700.0,110690.0,0.69582519]
[1756973203696,0.2703797,110700.0,110690.0,1.05662519]
[1756973204000,1.0994997,110700.0,110690.0,1.05662519]
[1756973205102,0.8494997,110700.0,110690.0,1.05662519]
[1756973207795,0.8494997,110700.0,110690.0,0.69582519]
[1756973208404,0.8484997,110700.0,110690.0,0.69582519]
[1756973209006,0.8474997,110700.0,110690.0,0.69582519]
[1756973209993,1.83350549,110700.0,110690.0,0.3206194]
[1756973210602,1.83350549,110700.0,110690.0,0.31082]
[1756973212500,1.83350549,110700.0,110690.0,0.28509]
[1756973212804,1.83350549,110700.0,110690.0,0.01989]
[1756973213900,2.20871128,110700.0,110690.0,0.01989]
[1756973214100,1.83350549,110700.0,110690.0,0.01989]
[1756973215307,0.6291797,110700.0,110690.0,0.04526]
[1756973215606,1.83258549,110700.0,110690.0,0.04526]
[1756973215808,1.4573797,110700.0,110690.0,0.04526]
[1756973216107,1.83258549,110700.0,110690.0,0.04526]
[1756973216809,1.83258549,110700.0,110690.0,0.01989]
[1756973217008,2.20779128,110700.0,110690.0,0.00451]
[1756973218305,1.4573797,110700.0,110690.0,0.00451]
[1756973218510,2.20779128,110700.0,110690.0,0.00451]
[1756973219012,1.37959128,110700.0,110690.0,0.00451]
[1756973219202,1.95783128,110700.0,110690.0,0.00451]
[1756973219710,1.12959128,110700.0,110690.0,0.00451]
[1756973219909,1.95775128,110700.0,110690.0,0.00451]
[1756973220511,2.95816286,110700.0,110690.0,0.00451]
[1756973227709,2.95772286,110700.0,110680.0,0.0001]
[1756973227912,1.56372579,110690.0,110680.0,0.0001]
[1756973228113,1.80444671,110690.0,110670.0,0.12402403]
[1756973228313,0.73600579,110680.0,110670.0,0.12402403]
[1756973228516,1.56364579,110680.0,110670.0,0.12392403]
[1756973229018,1.56364579,110680.0,110670.0,0.12843403]
[1756973229515,1.56364579,110680.0,110670.0,0.13143403]
[1756973230517,1.56364579,110680.0,110670.0,0.13243403]
[1756973231022,1.56364579,110680.0,110670.0,0.10706403]
[1756973231215,1.56364579,110680.0,110670.0,0.09749219]
[1756973231525,0.73600579,110680.0,110670.0,0.13278735]
[1756973231707,1.56340579,110680.0,110670.0,0.13278735]
[1756973233824,0.73600579,110680.0,110670.0,0.13278735]
[1756973234025,1.56344579,110680.0,110670.0,0.13278735]
[1756973236027,0.73600579,110680.0,110670.0,0.13278735]
[1756973236220,1.56328579,110680.0,110670.0,0.13278735]
[1756973237022,1.56328579,110680.0,110670.0,0.09749219]
[1756973237226,1.56328579,110680.0,110670.0,0.08211219]
[1756973238423,1.56328579,110680.0,110670.0,0.00851]
[1756973239426,1.56328579,110680.0,110670.0,0.02367]
[1756973243835,0.73600579,110680.0,110670.0,0.02367]
[1756973244023,1.56256579,110680.0,110670.0,0.02367]
[1756973244221,0.73600579,110680.0,110670.0,0.02367]
[1756973244425,1.56240579,110680.0,110670.0,0.04954]
[1756973244732,2.24240579,110680.0,110670.0,0.07954]
[1756973245833,1.8672,110680.0,110670.0,0.07954]
[1756973246032,2.24240579,110680.0,110670.0,0.07954]
[1756973248131,1.41600579,110680.0,110670.0,0.07954]
[1756973248327,2.24240579,110680.0,110670.0,0.07954]
[1756973248731,2.24212579,110680.0,110670.0,0.04954]
[1756973249039,1.41600579,110680.0,110670.0,0.04954]
[1756973249432,2.24212579,110680.0,110670.0,0.04954]
[1756973249637,1.04600579,110680.0,110670.0,0.04954]
[1756973249839,2.19208579,110680.0,110670.0,0.04954]
[1756973251137,2.21208579,110680.0,110670.0,0.04954]
[1756973251438,2.20204579,110680.0,110670.0,0.04954]
[1756973252232,1.37600579,110680.0,110670.0,0.04954]
[1756973252433,1.82708,110680.0,110670.0,0.04954]
[1756973252637,1.04600579,110680.0,110670.0,0.04954]
[1756973252938,1.87216579,110680.0,110670.0,0.12323614]
[1756973253138,1.04600579,110680.0,110670.0,0.12323614]
[1756973253337,1.87216579,110680.0,110670.0,0.12323614]
[1756973254538,1.04600579,110680.0,110670.0,0.12323614]
[1756973254837,1.87208579,110680.0,110670.0,0.12323614]
[1756973255438,1.87239501,110680.0,110670.0,0.12323614]
[1756973255938,1.04631501,110680.0,110670.0,0.12323614]
[1756973256138,1.87239501,110680.0,110670.0,0.12323614]
[1756973256843,1.49688,110680.0,110670.0,0.12323614]
[1756973257040,0.6708,110680.0,110670.0,0.49875115]
[1756973257240,1.49676,110680.0,110670.0,1.10875115]
[1756973257436,1.13596,110680.0,110670.0,0.73323614]
[1756973257637,1.13596,110680.0,110670.0,1.10875115]
[1756973257836,1.13596,110680.0,110670.0,0.73323614]
[1756973258040,1.13596,110680.0,110670.0,1.10875115]
[1756973258940,0.31,110680.0,110670.0,1.10875115]
[1756973259139,1.13596,110680.0,110670.0,1.10875115]
[1756973260041,0.31,110680.0,110670.0,1.10875115]
[1756973260242,1.13596,110680.0,110670.0,1.10875115]
[1756973260943,0.31,110680.0,110670.0,1.10875115]
[1756973261343,1.13592,110680.0,110670.0,1.10875115]
[1756973262441,0.31,110680.0,110670.0,1.10875115]
[1756973262642,1.13592,110680.0,110670.0,1.48426616]
[1756973263146,1.13592,110680.0,110670.0,1.10875115]
[1756973264044,1.13592,110680.0,110670.0,1.46955115]
[1756973264346,1.13592,110680.0,110670.0,1.84506616]
[1756973264645,1.13592,110680.0,110670.0,1.46955115]
[1756973265740,0.31,110680.0,110670.0,1.46955115]
[1756973266046,1.13588,110680.0,110670.0,1.46955115]
[1756973266245,1.13588,110680.0,110670.0,1.35923614]
[1756973266445,1.13588,110680.0,110670.0,2.86129618]
[1756973266746,1.13588,110680.0,110670.0,1.73475115]
[1756973268450,0.31,110680.0,110670.0,1.73475115]
[1756973268648,1.13588,110680.0,110670.0,2.11026616]
[1756973268843,0.31,110680.0,110670.0,2.11026616]
[1756973269054,1.13588,110680.0,110670.0,2.11026616]
[1756973269549,1.13588,110680.0,110670.0,1.73475115]
[1756973274558,1.13588,110680.0,110670.0,1.69475115]
[1756973277753,1.13588,110680.0,110670.0,2.07026616]
[1756973278458,1.13588,110680.0,110670.0,1.69475115]
[1756973278648,1.13588,110680.0,110670.0,2.07026616]
[1756973279157,1.13588,110680.0,110670.0,1.82026616]
[1756973279558,1.13588,110680.0,110670.0,1.44475115]
[1756973282567,1.13588,110680.0,110670.0,1.82026616]
[1756973283767,1.13576,110680.0,110670.0,1.82026616]
[1756973285672,1.13576,110680.0,110670.0,2.82129618]
[1756973285864,0.31,110680.0,110670.0,3.73739038]
[1756973286063,0.31,110680.0,110670.0,2.82129618]
[1756973286263,0.31,110680.0,110670.0,3.64705618]
[1756973286573,0.31,110680.0,110670.0,3.73739038]
[1756973288771,0.31,110680.0,110670.0,4.00739038]
[1756973290074,0.31,110680.0,110670.0,4.45119038]
[1756973290265,0.31,110680.0,110670.0,4.18119038]
[1756973292673,0.22157905,110680.0,110670.0,4.44119038]
[1756973292866,0.19011905,110680.0,110670.0,4.44119038]
[1756973293068,0.0183797,110700.0,110680.0,0.3555197]
[1756973293370,0.1543797,110700.0,110690.0,0.77694501]
[1756973293571,0.0143797,110700.0,110690.0,1.11694501]
[1756973293870,0.3243797,110700.0,110690.0,1.11694501]
[1756973294368,0.31,110700.0,110690.0,1.11694501]
[1756973294570,0.31,110700.0,110690.0,1.12145501]
[1756973296276,0.31,110700.0,110690.0,1.95097501]
[1756973296674,0.31,110700.0,110690.0,1.95197501]
[1756973297477,0.31,110700.0,110690.0,0.74794]
[1756973297678,0.31,110700.0,110690.0,1.57746]
[1756973297867,0.31,110700.0,110690.0,1.95297501]
[1756973298780,0.31,110700.0,110690.0,2.21817501]
[1756973299173,0.31,110700.0,110690.0,1.84266]
[1756973299372,0.31,110700.0,110690.0,2.21817501]
[1756973299680,0.31,110700.0,110690.0,1.38865501]
[1756973300277,0.31,110700.0,110690.0,1.01314]
[1756973300477,0.31,110700.0,110690.0,1.38865501]
[1756973300874,0.30498912,110700.0,110690.0,3.21631734]
[1756973301277,0.26851711,110700.0,110690.0,3.47631734]
[1756973301479,0.10419001,110700.0,110690.0,3.47631734]
[1756973302082,0.31,110700.0,110690.0,3.47631734]
[1756973302277,1.28760221,110750.0,110740.0,0.04063]
[1756973302478,2.14704221,110750.0,110740.0,0.74614501]
[1756973302683,2.34764221,110750.0,110740.0,0.04063]
[1756973303076,1.51760221,110750.0,110740.0,0.04063]
[1756973303271,1.51760221,110750.0,110740.0,0.11347062]
[1756973303475,2.34852221,110750.0,110740.0,0.41614501]
[1756973303675,2.35152221,110750.0,110740.0,1.15694501]
[1756973303878,2.35152221,110750.0,110740.0,0.40143]
[1756973304183,2.35252221,110750.0,110740.0,1.14694501]
[1756973304783,2.35252221,110750.0,110740.0,0.7865108]
[1756973305084,2.35252221,110750.0,110740.0,0.41099579]
[1756973305685,1.52160221,110750.0,110740.0,0.41099579]
[1756973305882,2.35244221,110750.0,110740.0,0.41099579]
[1756973306186,2.35244221,110750.0,110740.0,0.38544579]
[1756973306684,2.72795722,110750.0,110740.0,0.38544579]
[1756973308186,2.72795722,110750.0,110740.0,0.45937682]
[1756973308381,3.05795722,110750.0,110740.0,0.45937682]
[1756973308883,3.33795722,110750.0,110740.0,0.45937682]
[1756973309286,2.97795722,110750.0,110740.0,0.45937682]
[1756973309785,2.60244221,110750.0,110740.0,0.45937682]
[1756973310085,1.77160221,110750.0,110740.0,0.86044183]
[1756973310282,2.60200221,110750.0,110740.0,0.86044183]
[1756973310481,2.60188221,110750.0,110740.0,0.86044183]
[1756973310888,1.77160221,110750.0,110740.0,0.86044183]
[1756973311083,2.60176221,110750.0,110740.0,0.86044183]
[1756973311685,2.60176221,110750.0,110740.0,0.48492682]
[1756973311987,2.60176221,110750.0,110740.0,0.86044183]
[1756973312790,2.97727722,110750.0,110740.0,0.86044183]
[1756973312983,3.33727722,110750.0,110740.0,0.48492682]
[1756973313182,3.32727722,110750.0,110740.0,0.48492682]
[1756973313378,2.35176221,110750.0,110740.0,0.86044183]
[1756973313580,2.35176221,110750.0,110740.0,0.48492682]
[1756973313782,2.72727722,110750.0,110740.0,0.48492682]
[1756973313986,2.72677722,110750.0,110740.0,0.48492682]
[1756973314186,1.52110221,110750.0,110740.0,0.48492682]
[1756973314491,2.35090221,110750.0,110740.0,0.86044183]
[1756973314883,2.72641722,110750.0,110740.0,0.45937682]
[1756973315585,3.05641722,110750.0,110740.0,0.45937682]
[1756973315790,2.72641722,110750.0,110740.0,0.45937682]
[1756973315986,2.73090221,110750.0,110740.0,0.48492682]
[1756973316291,2.67090221,110750.0,110740.0,0.48492682]
[1756973316488,2.72641722,110750.0,110740.0,0.48492682]
[1756973316686,3.06641722,110750.0,110740.0,0.48492682]
[1756973317090,2.72641722,110750.0,110740.0,0.48492682]
[1756973317292,3.05641722,110750.0,110740.0,0.48492682]
[1756973317493,3.05595693,110750.0,110740.0,0.45937682]
[1756973318193,2.68090221,110750.0,110740.0,0.45937682]
[1756973318394,2.68090221,110750.0,110740.0,0.48492682]
[1756973318587,2.68090221,110750.0,110740.0,0.45937682]
[1756973318986,2.68090221,110750.0,110740.0,0.48492682]
[1756973319394,1.52110221,110750.0,110740.0,0.48492682]
[1756973319693,1.52110221,110750.0,110740.0,0.75012682]
[1756973319882,2.35302221,110750.0,110740.0,1.12968154]
[1756973320087,2.72807693,110750.0,110740.0,1.12968154]
[1756973320393,2.35302221,110750.0,110740.0,1.12968154]
[1756973321598,2.35302221,110750.0,110740.0,0.75462682]
[1756973321800,2.35312221,110750.0,110740.0,0.75462682]